Workbook

Sheet 贵阳市云岩区2023年统一公开招聘中小学、幼儿园教师试教及总绩
A1: 贵阳市云岩区2023年统一公开招聘中小学、幼儿园教师笔试、试教及总成绩
A2: 序号 | B2: 准考证号 | C2: 姓名 | D2: 报考学校名称 | E2: 报考岗位名称 | F2: 笔试 | I2: 试教 | K2: 总分 | L2: 名次 | M2: 岗位招聘人数 | N2: 是否进入体检
F3: 笔试成绩 | G3: 百分制 | H3: 占比40% | I3: 试教成绩 | J3: 占比60%
A4: 1 | B4: 10201071718 | C4: 李仙 | D4: 230201贵阳市第二实验中学 | E4: 01初中数学教师 | F4: 117.5 | G4: =F4/1.5 -> 78.33 | H4: =G4*0.4 -> 31.33 | I4: 87.92 | J4: =I4*0.6 -> 52.75 | K4: =J4+H4 -> 84.09 | L4: 1 | M4: 1 | N4: 进入体检
A5: 2 | B5: 10201172016 | C5: 陈红蝶 | D5: 230201贵阳市第二实验中学 | E5: 01初中数学教师 | F5: 119 | G5: 79.33 | H5: 31.73 | I5: 86.5 | J5: 51.90 | K5: 83.63
A6: 3 | B6: 10201192030 | C6: 陶昌鹏 | D6: 230201贵阳市第二实验中学 | E6: 01初中数学教师 | F6: 118.5 | G6: 79.00 | H6: 31.60 | I6: 85.2 | J6: 51.12 | K6: 82.72
A7: 4 | B7: 10201402214 | C7: 涂江艳 | D7: 230201贵阳市第二实验中学 | E7: 01初中数学教师 | F7: 119 | G7: 79.33 | H7: 31.73 | I7: 84.8 | J7: 50.88 | K7: 82.61
A8: 5 | B8: 10201400411 | C8: 冯丽 | D8: 230201贵阳市第二实验中学 | E8: 01初中数学教师 | F8: 116 | G8: 77.33 | H8: 30.93 | I8: 85.9 | J8: 51.54 | K8: 82.47
A9: 6 | B9: 10201191121 | C9: 龙远 | D9: 230201贵阳市第二实验中学 | E9: 01初中数学教师 | F9: 118.5 | G9: 79.00 | H9: 31.60 | I9: 84.3 | J9: 50.58 | K9: 82.18
A10: 7 | B10: 10201400326 | C10: 刘梅 | D10: 230201贵阳市第二实验中学 | E10: 01初中数学教师 | F10: 116 | G10: 77.33 | H10: 30.93 | I10: 83.5 | J10: 50.10 | K10: 81.03
A11: 8 | B11: 10201172226 | C11: 龙团江 | D11: 230202贵阳市第七中学 | E11: 01初中地理教师 | F11: 127 | G11: 84.67 | H11: 33.87 | I11: 88 | J11: 52.80 | K11: 86.67 | L11: 1 | M11: 1 | N11: 进入体检
A12: 9 | B12: 10201230610 | C12: 帅春燕 | D12: 230202贵阳市第七中学 | E12: 01初中地理教师 | F12: 123 | G12: 82.00 | H12: 32.80 | I12: 89.1 | J12: 53.46 | K12: 86.26
A13: 10 | B13: 10201172119 | C13: 杨婷 | D13: 230202贵阳市第七中学 | E13: 01初中地理教师 | F13: 123 | G13: 82.00 | H13: 32.80 | I13: 86.2 | J13: 51.72 | K13: 84.52
A14: 11 | B14: 10201370318 | C14: 王耀聆 | D14: 230202贵阳市第七中学 | E14: 01初中地理教师 | F14: 118.5 | G14: 79.00 | H14: 31.60 | I14: 87.8 | J14: 52.68 | K14: 84.28
A15: 12 | B15: 10201240815 | C15: 彭冲 | D15: 230202贵阳市第七中学 | E15: 01初中地理教师 | F15: 121 | G15: 80.67 | H15: 32.27 | I15: 85.6 | J15: 51.36 | K15: 83.63
A16: 13 | B16: 10201310718 | C16: 袁芬 | D16: 230202贵阳市第七中学 | E16: 01初中地理教师 | F16: 118 | G16: 78.67 | H16: 31.47 | I16: 84.4 | J16: 50.64 | K16: 82.11
A17: 14 | B17: 10201131214 | C17: 杨广英 | D17: 230202贵阳市第七中学 | E17: 02初中化学教师 | F17: 127 | G17: 84.67 | H17: 33.87 | I17: 85.4 | J17: 51.24 | K17: 85.11 | L17: 1 | M17: 1 | N17: 进入体检
A18: 15 | B18: 10201310209 | C18: 谯珍珍 | D18: 230202贵阳市第七中学 | E18: 02初中化学教师 | F18: 123.5 | G18: 82.33 | H18: 32.93 | I18: 85.7 | J18: 51.42 | K18: 84.35
A19: 16 | B19: 10201231218 | C19: 崔薇力 | D19: 230202贵阳市第七中学 | E19: 02初中化学教师 | F19: 127 | G19: 84.67 | H19: 33.87 | I19: 83.9 | J19: 50.34 | K19: 84.21
A20: 17 | B20: 10201240319 | C20: 田颖 | D20: 230202贵阳市第七中学 | E20: 02初中化学教师 | F20: 124.5 | G20: 83.00 | H20: 33.20 | I20: 82.5 | J20: 49.50 | K20: 82.70
A21: 18 | B21: 10201301930 | C21: 郭玉强 | D21: 230202贵阳市第七中学 | E21: 02初中化学教师 | F21: 123.5 | G21: 82.33 | H21: 32.93 | I21: 75.4 | J21: 45.24 | K21: 78.17
A22: 19 | B22: 10201240207 | C22: 陈发伟 | D22: 230202贵阳市第七中学 | E22: 02初中化学教师 | F22: 121 | G22: 80.67 | H22: 32.27 | I22: 缺考 | K22: =H22 -> 32.27
A23: 20 | B23: 10201311519 | C23: 田芯竹 | D23: 230203贵阳市第十九中学 | E23: 01初中英语教师 | F23: 125.5 | G23: 83.67 | H23: 33.47 | I23: 93 | J23: =I23*0.6 -> 55.80 | K23: =J23+H23 -> 89.27 | L23: 1 | M23: 1 | N23: 进入体检
A24: 21 | B24: 10201170113 | C24: 田丽娜 | D24: 230203贵阳市第十九中学 | E24: 01初中英语教师 | F24: 125.5 | G24: 83.67 | H24: 33.47 | I24: 88.4 | J24: 53.04 | K24: 86.51
A25: 22 | B25: 10201070718 | C25: 张科帆 | D25: 230203贵阳市第十九中学 | E25: 01初中英语教师 | F25: 124.5 | G25: 83.00 | H25: 33.20 | I25: 86.8 | J25: 52.08 | K25: 85.28
A26: 23 | B26: 10201171602 | C26: 张雯 | D26: 230203贵阳市第十九中学 | E26: 01初中英语教师 | F26: 122 | G26: 81.33 | H26: 32.53 | I26: 87.4 | J26: 52.44 | K26: 84.97
A27: 24 | B27: 10201232026 | C27: 王小清 | D27: 230203贵阳市第十九中学 | E27: 01初中英语教师 | F27: 124 | G27: 82.67 | H27: 33.07 | I27: 84 | J27: 50.40 | K27: 83.47
A28: 25 | B28: 10201231315 | C28: 田广丽 | D28: 230203贵阳市第十九中学 | E28: 01初中英语教师 | F28: 123.5 | G28: 82.33 | H28: 32.93 | I28: 82.3 | J28: 49.38 | K28: 82.31
A29: 26 | B29: 10201131710 | C29: 邵钰玲 | D29: 230204贵阳市第二十三中学 | E29: 01初中英语教师 | F29: 129 | G29: 86.00 | H29: 34.40 | I29: 88.7 | J29: 53.22 | K29: 87.62 | L29: 1 | M29: 1 | N29: 进入体检
A30: 27 | B30: 10201370507 | C30: 夏菁 | D30: 230204贵阳市第二十三中学 | E30: 01初中英语教师 | F30: 125 | G30: 83.33 | H30: 33.33 | I30: 88.8 | J30: 53.28 | K30: 86.61
A31: 28 | B31: 10201071712 | C31: 王雪芳 | D31: 230204贵阳市第二十三中学 | E31: 01初中英语教师 | F31: 122 | G31: 81.33 | H31: 32.53 | I31: 89.8 | J31: 53.88 | K31: 86.41
A32: 29 | B32: 10201371505 | C32: 何浩 | D32: 230204贵阳市第二十三中学 | E32: 01初中英语教师 | F32: 122.5 | G32: 81.67 | H32: 32.67 | I32: 89.4 | J32: 53.64 | K32: 86.31
A33: 30 | B33: 10201070301 | C33: 汪悦 | D33: 230204贵阳市第二十三中学 | E33: 01初中英语教师 | F33: 123 | G33: 82.00 | H33: 32.80 | I33: 83.7 | J33: 50.22 | K33: 83.02
A34: 31 | B34: 10201170603 | C34: 魏念 | D34: 230204贵阳市第二十三中学 | E34: 01初中英语教师 | F34: 122 | G34: 81.33 | H34: 32.53 | I34: 82.8 | J34: 49.68 | K34: 82.21
A35: 32 | B35: 10201240913 | C35: 李江粼 | D35: 230205贵阳市第二十八中学 | E35: 01初中语文教师 | F35: 130 | G35: 86.67 | H35: 34.67 | I35: 79.7 | J35: 47.82 | K35: 82.49 | L35: 1 | M35: 1 | N35: 进入体检
A36: 33 | B36: 10201230917 | C36: 杨孟璟 | D36: 230205贵阳市第二十八中学 | E36: 01初中语文教师 | F36: 120 | G36: 80.00 | H36: 32.00 | I36: 78.4 | J36: 47.04 | K36: 79.04
A37: 34 | B37: 10201310603 | C37: 李博 | D37: 230205贵阳市第二十八中学 | E37: 01初中语文教师 | F37: 123.5 | G37: 82.33 | H37: 32.93 | I37: 72.8 | J37: 43.68 | K37: 76.61
A38: 35 | B38: 10201310611 | C38: 李昌兰 | D38: 230205贵阳市第二十八中学 | E38: 01初中语文教师 | F38: 122.5 | G38: 81.67 | H38: 32.67 | I38: 缺考 | K38: =H38 -> 32.67
A39: 36 | B39: 10201191314 | C39: 田晓秋 | D39: 230205贵阳市第二十八中学 | E39: 01初中语文教师 | F39: 121.5 | G39: 81.00 | H39: 32.40 | I39: 缺考 | K39: =H39 -> 32.40
A40: 37 | B40: 10201310420 | C40: 段雪梅 | D40: 230205贵阳市第二十八中学 | E40: 01初中语文教师 | F40: 116 | G40: 77.33 | H40: 30.93 | I40: 缺考 | K40: =H40 -> 30.93
A41: 38 | B41: 10201301829 | C41: 陈武侠 | D41: 230205贵阳市第二十八中学 | E41: 02初中数学教师 | F41: 127 | G41: 84.67 | H41: 33.87 | I41: 84.7 | J41: =I41*0.6 -> 50.82 | K41: =J41+H41 -> 84.69 | L41: 1 | M41: 1 | N41: 进入体检
A42: 39 | B42: 10201300406 | C42: 张昌秀 | D42: 230205贵阳市第二十八中学 | E42: 02初中数学教师 | F42: 121 | G42: 80.67 | H42: 32.27 | I42: 86.9 | J42: =I42*0.6 -> 52.14 | K42: =J42+H42 -> 84.41
A43: 40 | B43: 10201400402 | C43: 赵晞然 | D43: 230205贵阳市第二十八中学 | E43: 02初中数学教师 | F43: 116.5 | G43: 77.67 | H43: 31.07 | I43: 84.74 | J43: =I43*0.6 -> 50.84 | K43: =J43+H43 -> 81.91
A44: 41 | B44: 10201311108 | C44: 刘秋艳 | D44: 230205贵阳市第二十八中学 | E44: 02初中数学教师 | F44: 121.5 | G44: 81.00 | H44: 32.40 | I44: 81.8 | J44: =I44*0.6 -> 49.08 | K44: =J44+H44 -> 81.48
A45: 42 | B45: 10201192412 | C45: 彭宇竹 | D45: 230205贵阳市第二十八中学 | E45: 02初中数学教师 | F45: 121 | G45: 80.67 | H45: 32.27 | I45: 81.62 | J45: =I45*0.6 -> 48.97 | K45: =J45+H45 -> 81.24
A46: 43 | B46: 10201170829 | C46: 黄文成 | D46: 230205贵阳市第二十八中学 | E46: 02初中数学教师 | F46: 117 | G46: 78.00 | H46: 31.20 | I46: 缺考 | K46: =H46 -> 31.20
A47: 44 | B47: 10201191621 | C47: 卢丹 | D47: 230206贵阳市第三十中学 | E47: 01初中历史教师 | F47: 125.5 | G47: 83.67 | H47: 33.47 | I47: 88.4 | J47: =I47*0.6 -> 53.04 | K47: =J47+H47 -> 86.51 | L47: 1 | M47: 1 | N47: 进入体检
A48: 45 | B48: 10201130907 | C48: 李斓婷 | D48: 230206贵阳市第三十中学 | E48: 01初中历史教师 | F48: 126 | G48: 84.00 | H48: 33.60 | I48: 84.1 | J48: =I48*0.6 -> 50.46 | K48: =J48+H48 -> 84.06
A49: 46 | B49: 10201311107 | C49: 宋举嫦 | D49: 230206贵阳市第三十中学 | E49: 01初中历史教师 | F49: 118.5 | G49: 79.00 | H49: 31.60 | I49: 80.4 | J49: =I49*0.6 -> 48.24 | K49: =J49+H49 -> 79.84
A50: 47 | B50: 10201311617 | C50: 刘婷 | D50: 230206贵阳市第三十中学 | E50: 01初中历史教师 | F50: 119.5 | G50: 79.67 | H50: 31.87 | I50: 79.6 | J50: =I50*0.6 -> 47.76 | K50: =J50+H50 -> 79.63
A51: 48 | B51: 10201231221 | C51: 杨龙 | D51: 230206贵阳市第三十中学 | E51: 01初中历史教师 | F51: 123 | G51: 82.00 | H51: 32.80 | I51: 缺考 | K51: =H51 -> 32.80
A52: 49 | B52: 10201240503 | C52: 张鹏艳 | D52: 230206贵阳市第三十中学 | E52: 01初中历史教师 | F52: 122 | G52: 81.33 | H52: 32.53 | I52: 缺考 | K52: =H52 -> 32.53
A53: 50 | B53: 10201231922 | C53: 刘开兰 | D53: 230206贵阳市第三十中学 | E53: 02初中地理教师 | F53: 131.5 | G53: 87.67 | H53: 35.07 | I53: 85.7 | J53: =I53*0.6 -> 51.42 | K53: =J53+H53 -> 86.49 | L53: 1 | M53: 1 | N53: 进入体检
A54: 51 | B54: 10201070828 | C54: 常佳丽 | D54: 230206贵阳市第三十中学 | E54: 02初中地理教师 | F54: 123.5 | G54: 82.33 | H54: 32.93 | I54: 88.3 | J54: =I54*0.6 -> 52.98 | K54: =J54+H54 -> 85.91
A55: 52 | B55: 10201171209 | C55: 董丽东 | D55: 230206贵阳市第三十中学 | E55: 02初中地理教师 | F55: 122.5 | G55: 81.67 | H55: 32.67 | I55: 82.6 | J55: =I55*0.6 -> 49.56 | K55: =J55+H55 -> 82.23
A56: 53 | B56: 10201070101 | C56: 蒲秀清 | D56: 230206贵阳市第三十中学 | E56: 02初中地理教师 | F56: 123.5 | G56: 82.33 | H56: 32.93 | I56: 81.9 | J56: =I56*0.6 -> 49.14 | K56: =J56+H56 -> 82.07
A57: 54 | B57: 10201280310 | C57: 刘祥慧 | D57: 230206贵阳市第三十中学 | E57: 02初中地理教师 | F57: 122.5 | G57: 81.67 | H57: 32.67 | I57: 82.1 | J57: =I57*0.6 -> 49.26 | K57: =J57+H57 -> 81.93
A58: 55 | B58: 10201193007 | C58: 田丽 | D58: 230206贵阳市第三十中学 | E58: 02初中地理教师 | F58: 118.5 | G58: 79.00 | H58: 31.60 | I58: 缺考 | K58: =H58 -> 31.60
A59: 56 | B59: 10201071311 | C59: 王显映 | D59: 230206贵阳市第三十中学 | E59: 03初中美术教师 | F59: 124 | G59: 82.67 | H59: 33.07 | I59: 87.9 | J59: =I59*0.6 -> 52.74 | K59: =J59+H59 -> 85.81 | L59: 1 | M59: 1 | N59: 进入体检
A60: 57 | B60: 10201240715 | C60: 张飞 | D60: 230206贵阳市第三十中学 | E60: 03初中美术教师 | F60: 120.5 | G60: 80.33 | H60: 32.13 | I60: 86.4 | J60: =I60*0.6 -> 51.84 | K60: =J60+H60 -> 83.97
A61: 58 | B61: 10201071110 | C61: 石尚维 | D61: 230206贵阳市第三十中学 | E61: 03初中美术教师 | F61: 120.5 | G61: 80.33 | H61: 32.13 | I61: 82.3 | J61: =I61*0.6 -> 49.38 | K61: =J61+H61 -> 81.51
A62: 59 | B62: 10201191427 | C62: 李蓉 | D62: 230206贵阳市第三十中学 | E62: 03初中美术教师 | F62: 119 | G62: 79.33 | H62: 31.73 | I62: 81.9 | J62: =I62*0.6 -> 49.14 | K62: =J62+H62 -> 80.87
A63: 60 | B63: 10201231108 | C63: 王英 | D63: 230206贵阳市第三十中学 | E63: 03初中美术教师 | F63: 127.5 | G63: 85.00 | H63: 34.00 | I63: 73.3 | J63: =I63*0.6 -> 43.98 | K63: =J63+H63 -> 77.98
A64: 61 | B64: 10201302017 | C64: 丁双 | D64: 230206贵阳市第三十中学 | E64: 03初中美术教师 | F64: 120 | G64: 80.00 | H64: 32.00 | I64: 缺考 | K64: =H64 -> 32.00
A65: 62 | B65: 10201191423 | C65: 曾霞 | D65: 230207贵阳市第三十七中学 | E65: 01初中语文教师 | F65: 134 | G65: 89.33 | H65: 35.73 | I65: 81.0 | J65: =I65*0.6 -> 48.60 | K65: =J65+H65 -> 84.33 | L65: 1 | M65: 1 | N65: 进入体检
A66: 63 | B66: 10201302206 | C66: 杨欢 | D66: 230207贵阳市第三十七中学 | E66: 01初中语文教师 | F66: 121.5 | G66: 81.00 | H66: 32.40 | I66: 83 | J66: =I66*0.6 -> 49.80 | K66: =J66+H66 -> 82.20
A67: 64 | B67: 10201170405 | C67: 陆小妹 | D67: 230207贵阳市第三十七中学 | E67: 01初中语文教师 | F67: 128 | G67: 85.33 | H67: 34.13 | I67: 79.3 | J67: =I67*0.6 -> 47.58 | K67: =J67+H67 -> 81.71
A68: 65 | B68: 10201280205 | C68: 王珊 | D68: 230207贵阳市第三十七中学 | E68: 01初中语文教师 | F68: 124.5 | G68: =F68/1.5 -> 83.00 | H68: =G68*0.4 -> 33.20 | I68: 78.8 | J68: =I68*0.6 -> 47.28 | K68: =J68+H68 -> 80.48
A69: 66 | B69: 10201191514 | C69: 牟红玲 | D69: 230207贵阳市第三十七中学 | E69: 01初中语文教师 | F69: 120 | G69: 80.00 | H69: 32.00 | I69: 75.2 | J69: =I69*0.6 -> 45.12 | K69: =J69+H69 -> 77.12
A70: 67 | B70: 10201071329 | C70: 顾倩 | D70: 230207贵阳市第三十七中学 | E70: 01初中语文教师 | F70: 120 | G70: 80.00 | H70: 32.00 | I70: 缺考 | K70: =H70 -> 32.00
A71: 68 | B71: 10201171206 | C71: 康念芳 | D71: 230207贵阳市第三十七中学 | E71: 02初中数学教师 | F71: 114.5 | G71: 76.33 | H71: 30.53 | I71: 88.62 | J71: =I71*0.6 -> 53.17 | K71: =J71+H71 -> 83.71 | L71: 1 | M71: 1 | N71: 进入体检
A72: 69 | B72: 10201171322 | C72: 郑向东 | D72: 230207贵阳市第三十七中学 | E72: 02初中数学教师 | F72: 122 | G72: 81.33 | H72: 32.53 | I72: 84.1 | J72: =I72*0.6 -> 50.46 | K72: =J72+H72 -> 82.99
A73: 70 | B73: 10201231515 | C73: 马丹 | D73: 230207贵阳市第三十七中学 | E73: 02初中数学教师 | F73: 116.5 | G73: 77.67 | H73: 31.07 | I73: 84.66 | J73: =I73*0.6 -> 50.80 | K73: =J73+H73 -> 81.86
A74: 71 | B74: 10201231501 | C74: 徐春燕 | D74: 230207贵阳市第三十七中学 | E74: 02初中数学教师 | F74: 114 | G74: 76.00 | H74: 30.40 | I74: 81.8 | J74: =I74*0.6 -> 49.08 | K74: =J74+H74 -> 79.48
A75: 72 | B75: 10201131626 | C75: 陈兴美 | D75: 230207贵阳市第三十七中学 | E75: 02初中数学教师 | F75: 111 | G75: 74.00 | H75: 29.60 | I75: 80.04 | J75: =I75*0.6 -> 48.02 | K75: =J75+H75 -> 77.62
A76: 73 | B76: 10201240810 | C76: 雷宗飞 | D76: 230207贵阳市第三十七中学 | E76: 02初中数学教师 | F76: 110 | G76: 73.33 | H76: 29.33 | I76: 缺考 | K76: =H76 -> 29.33
A77: 74 | B77: 10201170120 | C77: 李磊 | D77: 230208贵阳市第四十中学 | E77: 01初中历史教师 | F77: 125 | G77: 83.33 | H77: 33.33 | I77: 87.9 | J77: =I77*0.6 -> 52.74 | K77: =J77+H77 -> 86.07 | L77: 1 | M77: 1 | N77: 进入体检
A78: 75 | B78: 10201191125 | C78: 熊海玉 | D78: 230208贵阳市第四十中学 | E78: 01初中历史教师 | F78: 121.5 | G78: 81.00 | H78: 32.40 | I78: 86.3 | J78: 51.78 | K78: 84.18
A79: 76 | B79: 10201280613 | C79: 顾明月 | D79: 230208贵阳市第四十中学 | E79: 01初中历史教师 | F79: 121 | G79: 80.67 | H79: 32.27 | I79: 77.6 | J79: 46.56 | K79: 78.83
A80: 77 | B80: 10201192811 | C80: 梁丹 | D80: 230208贵阳市第四十中学 | E80: 01初中历史教师 | F80: 122 | G80: 81.33 | H80: 32.53 | I80: 75.4 | J80: 45.24 | K80: 77.77
A81: 78 | B81: 10201071715 | C81: 袁岩 | D81: 230208贵阳市第四十中学 | E81: 01初中历史教师 | F81: 119.5 | G81: 79.67 | H81: 31.87 | I81: 66.1 | J81: 39.66 | K81: 71.53
A82: 79 | B82: 10201231324 | C82: 周训莲 | D82: 230208贵阳市第四十中学 | E82: 01初中历史教师 | F82: 118 | G82: 78.67 | H82: 31.47 | I82: 63.9 | J82: 38.34 | K82: 69.81
A83: 80 | B83: 10201071717 | C83: 郑秋月 | D83: 230208贵阳市第四十中学 | E83: 01初中历史教师 | F83: 118 | G83: 78.67 | H83: 31.47 | I83: 缺考 | K83: =H83 -> 31.47
A84: 81 | B84: 10201231426 | C84: 叶坤坤 | D84: 230208贵阳市第四十中学 | E84: 02初中地理教师 | F84: 130 | G84: 86.67 | H84: 34.67 | I84: 90.1 | J84: =I84*0.6 -> 54.06 | K84: =J84+H84 -> 88.73 | L84: 1 | M84: 1 | N84: 进入体检
A85: 82 | B85: 10201070204 | C85: 郑倩 | D85: 230208贵阳市第四十中学 | E85: 02初中地理教师 | F85: 121 | G85: 80.67 | H85: 32.27 | I85: 85.6 | J85: 51.36 | K85: 83.63
A86: 83 | B86: 10201193108 | C86: 欧益艳 | D86: 230208贵阳市第四十中学 | E86: 02初中地理教师 | F86: 119.5 | G86: 79.67 | H86: 31.87 | I86: 85.8 | J86: 51.48 | K86: 83.35
A87: 84 | B87: 10201370526 | C87: 杨迪 | D87: 230208贵阳市第四十中学 | E87: 02初中地理教师 | F87: 123.5 | G87: 82.33 | H87: 32.93 | I87: 82.2 | J87: 49.32 | K87: 82.25
A88: 85 | B88: 10201070822 | C88: 刘倩 | D88: 230208贵阳市第四十中学 | E88: 02初中地理教师 | F88: 118 | G88: 78.67 | H88: 31.47 | I88: 84 | J88: 50.40 | K88: 81.87
A89: 86 | B89: 10201371518 | C89: 钟阿芳 | D89: 230208贵阳市第四十中学 | E89: 02初中地理教师 | F89: 121.5 | G89: 81.00 | H89: 32.40 | I89: 82.2 | J89: 49.32 | K89: 81.72
A90: 87 | B90: 10201281624 | C90: 杜光芬 | D90: 230208贵阳市第四十中学 | E90: 03初中生物教师 | F90: 130.5 | G90: 87.00 | H90: 34.80 | I90: 86.2 | J90: 51.72 | K90: 86.52 | L90: 1 | M90: 1 | N90: 进入体检
A91: 88 | B91: 10201190328 | C91: 武如暇 | D91: 230208贵阳市第四十中学 | E91: 03初中生物教师 | F91: 135 | G91: 90.00 | H91: 36.00 | I91: 78.8 | J91: 47.28 | K91: 83.28
A92: 89 | B92: 10201171227 | C92: 文静 | D92: 230208贵阳市第四十中学 | E92: 03初中生物教师 | F92: 128.5 | G92: 85.67 | H92: 34.27 | I92: 81 | J92: 48.60 | K92: 82.87
A93: 90 | B93: 10201191814 | C93: 金韦丹 | D93: 230208贵阳市第四十中学 | E93: 03初中生物教师 | F93: 124.5 | G93: 83.00 | H93: 33.20 | I93: 缺考 | K93: =H93 -> 33.20
A94: 91 | B94: 10201231326 | C94: 宋定吉 | D94: 230208贵阳市第四十中学 | E94: 03初中生物教师 | F94: 124 | G94: 82.67 | H94: 33.07 | I94: 缺考 | K94: =H94 -> 33.07
A95: 92 | B95: 10201130620 | C95: 杨佳 | D95: 230208贵阳市第四十中学 | E95: 03初中生物教师 | F95: 123 | G95: 82.00 | H95: 32.80 | I95: 缺考 | K95: =H95 -> 32.80
A96: 93 | B96: 10201170904 | C96: 周雨静 | D96: 230208贵阳市第四十中学 | E96: 04初中物理教师 | F96: 117.5 | G96: 78.33 | H96: 31.33 | I96: 80 | J96: =I96*0.6 -> 48.00 | K96: =J96+H96 -> 79.33 | L96: 1 | M96: 1 | N96: 进入体检
A97: 94 | B97: 10201370325 | C97: 王雪 | D97: 230208贵阳市第四十中学 | E97: 04初中物理教师 | F97: 109.5 | G97: 73.00 | H97: 29.20 | I97: 82.7 | J97: =I97*0.6 -> 49.62 | K97: =J97+H97 -> 78.82
A98: 95 | B98: 10201171517 | C98: 娄方锦 | D98: 230208贵阳市第四十中学 | E98: 04初中物理教师 | F98: 109 | G98: 72.67 | H98: 29.07 | I98: 74.6 | J98: =I98*0.6 -> 44.76 | K98: =J98+H98 -> 73.83
A99: 96 | B99: 10201190707 | C99: 陈坤 | D99: 230208贵阳市第四十中学 | E99: 04初中物理教师 | F99: 118 | G99: 78.67 | H99: 31.47 | I99: 70.5 | J99: =I99*0.6 -> 42.30 | K99: =J99+H99 -> 73.77
A100: 97 | B100: 10201172118 | C100: 邹晓丹 | D100: 230208贵阳市第四十中学 | E100: 04初中物理教师 | F100: 109.5 | G100: 73.00 | H100: 29.20 | I100: 66.8 | J100: =I100*0.6 -> 40.08 | K100: =J100+H100 -> 69.28
A101: 98 | B101: 10201231713 | C101: 邓鹏 | D101: 230208贵阳市第四十中学 | E101: 04初中物理教师 | F101: 113 | G101: 75.33 | H101: 30.13 | I101: 缺考 | K101: =H101 -> 30.13
A102: 99 | B102: 10201281015 | C102: 姜英 | D102: 230208贵阳市第四十中学 | E102: 05初中化学教师 | F102: 131 | G102: 87.33 | H102: 34.93 | I102: 83.8 | J102: =I102*0.6 -> 50.28 | K102: =J102+H102 -> 85.21 | L102: 1 | M102: 1 | N102: 进入体检
A103: 100 | B103: 10201172129 | C103: 李思洁 | D103: 230208贵阳市第四十中学 | E103: 05初中化学教师 | F103: 125.5 | G103: 83.67 | H103: 33.47 | I103: 81.4 | J103: =I103*0.6 -> 48.84 | K103: =J103+H103 -> 82.31
A104: 101 | B104: 10201191509 | C104: 田维 | D104: 230208贵阳市第四十中学 | E104: 05初中化学教师 | F104: 124.5 | G104: 83.00 | H104: 33.20 | I104: 81.1 | J104: =I104*0.6 -> 48.66 | K104: =J104+H104 -> 81.86
A105: 102 | B105: 10201171122 | C105: 周治艳 | D105: 230208贵阳市第四十中学 | E105: 05初中化学教师 | F105: 119 | G105: 79.33 | H105: 31.73 | I105: 81.4 | J105: =I105*0.6 -> 48.84 | K105: =J105+H105 -> 80.57
A106: 103 | B106: 10201371204 | C106: 徐丽 | D106: 230208贵阳市第四十中学 | E106: 05初中化学教师 | F106: 117.5 | G106: 78.33 | H106: 31.33 | I106: 81.9 | J106: =I106*0.6 -> 49.14 | K106: =J106+H106 -> 80.47
A107: 104 | B107: 10201301912 | C107: 白倩 | D107: 230208贵阳市第四十中学 | E107: 05初中化学教师 | F107: 118 | G107: 78.67 | H107: 31.47 | I107: 缺考 | K107: =H107 -> 31.47
A108: 105 | B108: 10201191429 | C108: 陶丹妮 | D108: 230208贵阳市第四十中学 | E108: 06初中美术教师 | F108: 123.5 | G108: 82.33 | H108: 32.93 | I108: 87 | J108: =I108*0.6 -> 52.20 | K108: =J108+H108 -> 85.13 | L108: 1 | M108: 1 | N108: 进入体检
A109: 106 | B109: 10201370912 | C109: 陈芳芳 | D109: 230208贵阳市第四十中学 | E109: 06初中美术教师 | F109: 123.5 | G109: 82.33 | H109: 32.93 | I109: 86.6 | J109: 51.96 | K109: 84.89
A110: 107 | B110: 10201193101 | C110: 胡桂 | D110: 230208贵阳市第四十中学 | E110: 06初中美术教师 | F110: 124.5 | G110: 83.00 | H110: 33.20 | I110: 82.6 | J110: 49.56 | K110: 82.76
A111: 108 | B111: 10201281522 | C111: 梁欢欢 | D111: 230208贵阳市第四十中学 | E111: 06初中美术教师 | F111: 123 | G111: 82.00 | H111: 32.80 | I111: 81.4 | J111: 48.84 | K111: 81.64
A112: 109 | B112: 10201240224 | C112: 牟成玫 | D112: 230208贵阳市第四十中学 | E112: 06初中美术教师 | F112: 122.5 | G112: 81.67 | H112: 32.67 | I112: 80 | J112: 48.00 | K112: 80.67
A113: 110 | B113: 10201070411 | C113: 李彦飞 | D113: 230208贵阳市第四十中学 | E113: 06初中美术教师 | F113: 120 | G113: 80.00 | H113: 32.00 | I113: 76.1 | J113: 45.66 | K113: 77.66
A114: 111 | B114: 10201171722 | C114: 程青喜 | D114: 230208贵阳市第四十中学 | E114: 07小学语文教师 | F114: 121.5 | G114: 81.00 | H114: 32.40 | I114: 83.76 | J114: 50.26 | K114: 82.66 | L114: 1 | M114: 1 | N114: 进入体检
A115: 112 | B115: 10201371706 | C115: 陈艳 | D115: 230208贵阳市第四十中学 | E115: 07小学语文教师 | F115: 130 | G115: 86.67 | H115: 34.67 | I115: 79.68 | J115: 47.81 | K115: 82.47
A116: 113 | B116: 10201371307 | C116: 谢封菊 | D116: 230208贵阳市第四十中学 | E116: 07小学语文教师 | F116: 117 | G116: 78.00 | H116: 31.20 | I116: 84.38 | J116: 50.63 | K116: 81.83
A117: 114 | B117: 10201071001 | C117: 王荔 | D117: 230208贵阳市第四十中学 | E117: 07小学语文教师 | F117: 123 | G117: 82.00 | H117: 32.80 | I117: 77.2 | J117: 46.32 | K117: 79.12
A118: 115 | B118: 10201281330 | C118: 周娥 | D118: 230208贵阳市第四十中学 | E118: 07小学语文教师 | F118: 119.5 | G118: 79.67 | H118: 31.87 | I118: 77.68 | J118: 46.61 | K118: 78.47
A119: 116 | B119: 10201370229 | C119: 贾小艳 | D119: 230208贵阳市第四十中学 | E119: 07小学语文教师 | F119: 118.5 | G119: 79.00 | H119: 31.60 | I119: 70.8 | J119: 42.48 | K119: 74.08
A120: 117 | B120: 10201240215 | C120: 刁思邑 | D120: 230208贵阳市第四十中学 | E120: 08小学数学教师 | F120: 129 | G120: 86.00 | H120: 34.40 | I120: 86.2 | J120: 51.72 | K120: 86.12 | L120: 1 | M120: 2 | N120: 进入体检
A121: 118 | B121: 10201170307 | C121: 罗佳懿 | D121: 230208贵阳市第四十中学 | E121: 08小学数学教师 | F121: 122.5 | G121: 81.67 | H121: 32.67 | I121: 87.3 | J121: 52.38 | K121: 85.05 | L121: 2 | N121: 进入体检
A122: 119 | B122: 10201400116 | C122: 侯丽 | D122: 230208贵阳市第四十中学 | E122: 08小学数学教师 | F122: 118.5 | G122: 79.00 | H122: 31.60 | I122: 83.4 | J122: 50.04 | K122: 81.64
A123: 120 | B123: 10201400518 | C123: 陈默 | D123: 230208贵阳市第四十中学 | E123: 08小学数学教师 | F123: 116 | G123: 77.33 | H123: 30.93 | I123: 83.7 | J123: 50.22 | K123: 81.15
A124: 121 | B124: 10201371203 | C124: 宋娟 | D124: 230208贵阳市第四十中学 | E124: 08小学数学教师 | F124: 122 | G124: 81.33 | H124: 32.53 | I124: 76.2 | J124: 45.72 | K124: 78.25
A125: 122 | B125: 10201280411 | C125: 焦红英 | D125: 230208贵阳市第四十中学 | E125: 08小学数学教师 | F125: 119.5 | G125: 79.67 | H125: 31.87 | I125: 75.7 | J125: 45.42 | K125: 77.29
A126: 123 | B126: 10201400807 | C126: 罗霞 | D126: 230208贵阳市第四十中学 | E126: 08小学数学教师 | F126: 123 | G126: 82.00 | H126: 32.80 | I126: 73.6 | J126: 44.16 | K126: 76.96
A127: 124 | B127: 10201170517 | C127: 宋敏琴 | D127: 230208贵阳市第四十中学 | E127: 08小学数学教师 | F127: 116 | G127: 77.33 | H127: 30.93 | I127: 75.9 | J127: 45.54 | K127: 76.47
A128: 125 | B128: 10201230803 | C128: 罗宇 | D128: 230208贵阳市第四十中学 | E128: 08小学数学教师 | F128: 123 | G128: 82.00 | H128: 32.80 | I128: 71.5 | J128: 42.90 | K128: 75.70
A129: 126 | B129: 10201402108 | C129: 李国芳 | D129: 230208贵阳市第四十中学 | E129: 08小学数学教师 | F129: 121 | G129: 80.67 | H129: 32.27 | I129: 69.3 | J129: 41.58 | K129: 73.85
A130: 127 | B130: 10201130727 | C130: 邹威 | D130: 230208贵阳市第四十中学 | E130: 08小学数学教师 | F130: 117.5 | G130: 78.33 | H130: 31.33 | I130: 61 | J130: 36.60 | K130: 67.93
A131: 128 | B131: 10201312118 | C131: 张春云 | D131: 230208贵阳市第四十中学 | E131: 08小学数学教师 | F131: 116 | G131: 77.33 | H131: 30.93 | I131: 缺考 | K131: =H131 -> 30.93
A132: 129 | B132: 10201172109 | C132: 王云祥 | D132: 230208贵阳市第四十中学 | E132: 09小学体育教师 | F132: 127 | G132: =F132/1.5 -> 84.67 | H132: =G132*0.4 -> 33.87 | I132: 83 | J132: =I132*0.6 -> 49.80 | K132: =J132+H132 -> 83.67 | L132: 1 | M132: 1 | N132: 进入体检
A133: 130 | B133: 10201192104 | C133: 张凯岭 | D133: 230208贵阳市第四十中学 | E133: 09小学体育教师 | F133: 126 | G133: 84.00 | H133: 33.60 | I133: 71 | J133: =I133*0.6 -> 42.60 | K133: =J133+H133 -> 76.20
A134: 131 | B134: 10201240730 | C134: 何雯 | D134: 230208贵阳市第四十中学 | E134: 09小学体育教师 | F134: 105 | G134: 70.00 | H134: 28.00 | I134: 73.8 | J134: =I134*0.6 -> 44.28 | K134: =J134+H134 -> 72.28
A135: 132 | B135: 10201190920 | C135: 赵俊男 | D135: 230208贵阳市第四十中学 | E135: 09小学体育教师 | F135: 109.5 | G135: 73.00 | H135: 29.20 | I135: 缺考 | K135: =H135 -> 29.20
A136: 133 | B136: 10201300524 | C136: 覃诗倩 | D136: 230208贵阳市第四十中学 | E136: 09小学体育教师 | F136: 109.5 | G136: 73.00 | H136: 29.20 | I136: 缺考 | K136: =H136 -> 29.20
A137: 134 | B137: 10201131716 | C137: 杨航 | D137: 230208贵阳市第四十中学 | E137: 09小学体育教师 | F137: 107.5 | G137: 71.67 | H137: 28.67 | I137: 缺考 | K137: =H137 -> 28.67
A138: 135 | B138: 10201311210 | C138: 贾颖 | D138: 230209云岩区第一中学 | E138: 01初中语文教师 | F138: 118 | G138: 78.67 | H138: 31.47 | I138: 84.3 | J138: =I138*0.6 -> 50.58 | K138: =J138+H138 -> 82.05 | L138: 1 | M138: 1 | N138: 进入体检
A139: 136 | B139: 10201300613 | C139: 李娇娇 | D139: 230209云岩区第一中学 | E139: 01初中语文教师 | F139: 124.5 | G139: 83.00 | H139: 33.20 | I139: 80.3 | J139: =I139*0.6 -> 48.18 | K139: =J139+H139 -> 81.38
A140: 137 | B140: 10201400104 | C140: 刘安琴 | D140: 230209云岩区第一中学 | E140: 01初中语文教师 | F140: 123 | G140: 82.00 | H140: 32.80 | I140: 75.7 | J140: =I140*0.6 -> 45.42 | K140: =J140+H140 -> 78.22
A141: 138 | B141: 10201232130 | C141: 张俊莉 | D141: 230209云岩区第一中学 | E141: 01初中语文教师 | F141: 120 | G141: 80.00 | H141: 32.00 | I141: 75.6 | J141: =I141*0.6 -> 45.36 | K141: =J141+H141 -> 77.36
A142: 139 | B142: 10201302114 | C142: 张秋宇 | D142: 230209云岩区第一中学 | E142: 01初中语文教师 | F142: 122.5 | G142: 81.67 | H142: 32.67 | I142: 70.4 | J142: =I142*0.6 -> 42.24 | K142: =J142+H142 -> 74.91
A143: 140 | B143: 10201301703 | C143: 李敏 | D143: 230209云岩区第一中学 | E143: 01初中语文教师 | F143: 118.5 | G143: 79.00 | H143: 31.60 | I143: 缺考 | K143: =H143 -> 31.60
A144: 141 | B144: 10201170508 | C144: 杨璐 | D144: 230210北京市日坛中学贵阳分校 | E144: 01初中语文教师 | F144: 123 | G144: 82.00 | H144: 32.80 | I144: 85.2 | J144: =I144*0.6 -> 51.12 | K144: =J144+H144 -> 83.92 | L144: 1 | M144: 1 | N144: 进入体检
A145: 142 | B145: 10201171610 | C145: 安丽 | D145: 230210北京市日坛中学贵阳分校 | E145: 01初中语文教师 | F145: 127 | G145: 84.67 | H145: 33.87 | I145: 81.6 | J145: =I145*0.6 -> 48.96 | K145: =J145+H145 -> 82.83
A146: 143 | B146: 10201240311 | C146: 邹信 | D146: 230210北京市日坛中学贵阳分校 | E146: 01初中语文教师 | F146: 118 | G146: 78.67 | H146: 31.47 | I146: 83.3 | J146: =I146*0.6 -> 49.98 | K146: =J146+H146 -> 81.45
A147: 144 | B147: 10201370307 | C147: 李锦 | D147: 230210北京市日坛中学贵阳分校 | E147: 01初中语文教师 | F147: 116.5 | G147: 77.67 | H147: 31.07 | I147: 80.7 | J147: =I147*0.6 -> 48.42 | K147: =J147+H147 -> 79.49
A148: 145 | B148: 10201230527 | C148: 梁群英 | D148: 230210北京市日坛中学贵阳分校 | E148: 01初中语文教师 | F148: 120.5 | G148: 80.33 | H148: 32.13 | I148: 71.8 | J148: =I148*0.6 -> 43.08 | K148: =J148+H148 -> 75.21
A149: 146 | B149: 10201301419 | C149: 余记赏 | D149: 230210北京市日坛中学贵阳分校 | E149: 01初中语文教师 | F149: 112 | G149: 74.67 | H149: 29.87 | I149: 缺考 | K149: =H149 -> 29.87
A150: 147 | B150: 10201310829 | C150: 徐璐莹 | D150: 230211贵阳市省府路小学 | E150: 01小学语文教师 | F150: 127.5 | G150: 85.00 | H150: 34.00 | I150: 82.8 | J150: =I150*0.6 -> 49.68 | K150: =J150+H150 -> 83.68 | L150: 1 | M150: 1 | N150: 进入体检
A151: 148 | B151: 10201300904 | C151: 罗丽华 | D151: 230211贵阳市省府路小学 | E151: 01小学语文教师 | F151: 119.5 | G151: 79.67 | H151: 31.87 | I151: 83.06 | J151: =I151*0.6 -> 49.84 | K151: =J151+H151 -> 81.70
A152: 149 | B152: 10201240726 | C152: 石龙英 | D152: 230211贵阳市省府路小学 | E152: 01小学语文教师 | F152: 124 | G152: 82.67 | H152: 33.07 | I152: 79.7 | J152: =I152*0.6 -> 47.82 | K152: =J152+H152 -> 80.89
A153: 150 | B153: 10201280603 | C153: 龙虑伊 | D153: 230211贵阳市省府路小学 | E153: 01小学语文教师 | F153: 121 | G153: 80.67 | H153: 32.27 | I153: 缺考 | K153: =H153 -> 32.27
A154: 151 | B154: 10201301202 | C154: 张露 | D154: 230211贵阳市省府路小学 | E154: 01小学语文教师 | F154: 120 | G154: 80.00 | H154: 32.00 | I154: 缺考 | K154: =H154 -> 32.00
A155: 152 | B155: 10201370915 | C155: 卢丽杰 | D155: 230211贵阳市省府路小学 | E155: 01小学语文教师 | F155: 116.5 | G155: 77.67 | H155: 31.07 | I155: 缺考 | K155: =H155 -> 31.07
A156: 153 | B156: 10201400711 | C156: 汤文锐 | D156: 230212贵阳市第二实验小学 | E156: 01小学语文教师 | F156: 123 | G156: 82.00 | H156: 32.80 | I156: 81.3 | J156: =I156*0.6 -> 48.78 | K156: =J156+H156 -> 81.58 | L156: 1 | M156: 1 | N156: 进入体检
A157: 154 | B157: 10201402119 | C157: 付珊 | D157: 230212贵阳市第二实验小学 | E157: 01小学语文教师 | F157: 122.5 | G157: 81.67 | H157: 32.67 | I157: 77.7 | J157: 46.62 | K157: 79.29
A158: 155 | B158: 10201240925 | C158: 田双迎 | D158: 230212贵阳市第二实验小学 | E158: 01小学语文教师 | F158: 127 | G158: 84.67 | H158: 33.87 | I158: 74.2 | J158: 44.52 | K158: 78.39
A159: 156 | B159: 10201192728 | C159: 周制祥 | D159: 230212贵阳市第二实验小学 | E159: 01小学语文教师 | F159: 118 | G159: 78.67 | H159: 31.47 | I159: 73.3 | J159: 43.98 | K159: 75.45
A160: 157 | B160: 10201301210 | C160: 冼天铖 | D160: 230212贵阳市第二实验小学 | E160: 01小学语文教师 | F160: 117 | G160: 78.00 | H160: 31.20 | I160: 71.5 | J160: 42.90 | K160: 74.10
A161: 158 | B161: 10201070820 | C161: 汪娥 | D161: 230212贵阳市第二实验小学 | E161: 01小学语文教师 | F161: 119 | G161: 79.33 | H161: 31.73 | I161: 68.9 | J161: 41.34 | K161: 73.07
A162: 159 | B162: 10201190304 | C162: 张元梅 | D162: 230212贵阳市第二实验小学 | E162: 02小学音乐教师 | F162: 118.5 | G162: 79.00 | H162: 31.60 | I162: 74.5 | J162: 44.70 | K162: 76.30 | L162: 1 | M162: 1 | N162: 进入体检
A163: 160 | B163: 10201191926 | C163: 汪梦瑶 | D163: 230212贵阳市第二实验小学 | E163: 02小学音乐教师 | F163: 129.5 | G163: 86.33 | H163: 34.53 | I163: 69.6 | J163: 41.76 | K163: 76.29
A164: 161 | B164: 10201192015 | C164: 蒋颖 | D164: 230212贵阳市第二实验小学 | E164: 02小学音乐教师 | F164: 116.5 | G164: 77.67 | H164: 31.07 | I164: 71.8 | J164: 43.08 | K164: 74.15
A165: 162 | B165: 10201231219 | C165: 吕欢 | D165: 230212贵阳市第二实验小学 | E165: 02小学音乐教师 | F165: 122 | G165: 81.33 | H165: 32.53 | I165: 68.4 | J165: 41.04 | K165: 73.57
A166: 163 | B166: 10201281107 | C166: 杨柳青 | D166: 230212贵阳市第二实验小学 | E166: 02小学音乐教师 | F166: 118.5 | G166: 79.00 | H166: 31.60 | I166: 65.6 | J166: 39.36 | K166: 70.96
A167: 164 | B167: 10201301320 | C167: 成紫睿 | D167: 230212贵阳市第二实验小学 | E167: 02小学音乐教师 | F167: 123 | G167: 82.00 | H167: 32.80 | I167: 60.7 | J167: 36.42 | K167: 69.22
A168: 165 | B168: 10201280902 | C168: 晏婷 | D168: 230213贵阳市改茶小学 | E168: 01小学语文教师 | F168: 126 | G168: 84.00 | H168: 33.60 | I168: 78 | J168: 46.80 | K168: 80.40 | L168: 1 | M168: 2 | N168: 进入体检
A169: 166 | B169: 10201070125 | C169: 冷晓悦 | D169: 230213贵阳市改茶小学 | E169: 01小学语文教师 | F169: 128.5 | G169: 85.67 | H169: 34.27 | I169: 75.3 | J169: 45.18 | K169: 79.45 | L169: 2 | N169: 进入体检
A170: 167 | B170: 10201240608 | C170: 翟云燕 | D170: 230213贵阳市改茶小学 | E170: 01小学语文教师 | F170: 130 | G170: 86.67 | H170: 34.67 | I170: 73.6 | J170: 44.16 | K170: 78.83
A171: 168 | B171: 10201170715 | C171: 杨澜 | D171: 230213贵阳市改茶小学 | E171: 01小学语文教师 | F171: 127.5 | G171: 85.00 | H171: 34.00 | I171: 74.6 | J171: 44.76 | K171: 78.76
A172: 169 | B172: 10201281627 | C172: 李芳雪 | D172: 230213贵阳市改茶小学 | E172: 01小学语文教师 | F172: 127 | G172: 84.67 | H172: 33.87 | I172: 74.5 | J172: 44.70 | K172: 78.57
A173: 170 | B173: 10201372107 | C173: 江源 | D173: 230213贵阳市改茶小学 | E173: 01小学语文教师 | F173: 129 | G173: 86.00 | H173: 34.40 | I173: 71.3 | J173: 42.78 | K173: 77.18
A174: 171 | B174: 10201171315 | C174: 翟亚玲 | D174: 230213贵阳市改茶小学 | E174: 01小学语文教师 | F174: 119.5 | G174: 79.67 | H174: 31.87 | I174: 73.9 | J174: 44.34 | K174: 76.21
A175: 172 | B175: 10201371921 | C175: 杨兴会 | D175: 230213贵阳市改茶小学 | E175: 01小学语文教师 | F175: 129.5 | G175: 86.33 | H175: 34.53 | I175: 68.2 | J175: 40.92 | K175: 75.45
A176: 173 | B176: 10201190513 | C176: 倪燕 | D176: 230213贵阳市改茶小学 | E176: 01小学语文教师 | F176: 120 | G176: 80.00 | H176: 32.00 | I176: 70.3 | J176: 42.18 | K176: 74.18
A177: 174 | B177: 10201070724 | C177: 张玉婕 | D177: 230213贵阳市改茶小学 | E177: 01小学语文教师 | F177: 120.5 | G177: 80.33 | H177: 32.13 | I177: 缺考 | K177: =H177 -> 32.13
A178: 175 | B178: 10201193104 | C178: 文梦雪 | D178: 230213贵阳市改茶小学 | E178: 01小学语文教师 | F178: 120.5 | G178: 80.33 | H178: 32.13 | I178: 缺考 | K178: =H178 -> 32.13
A179: 176 | B179: 10201400801 | C179: 李莹 | D179: 230213贵阳市改茶小学 | E179: 01小学语文教师 | F179: 119 | G179: 79.33 | H179: 31.73 | I179: 缺考 | K179: =H179 -> 31.73
A180: 177 | B180: 10201311920 | C180: 吴姣 | D180: 230213贵阳市改茶小学 | E180: 02小学英语教师 | F180: 131 | G180: 87.33 | H180: 34.93 | I180: 82.8 | J180: =I180*0.6 -> 49.68 | K180: =J180+H180 -> 84.61 | L180: 1 | M180: 1 | N180: 进入体检
A181: 178 | B181: 10201171128 | C181: 徐静旭 | D181: 230213贵阳市改茶小学 | E181: 02小学英语教师 | F181: 122.5 | G181: 81.67 | H181: 32.67 | I181: 82.9 | J181: =I181*0.6 -> 49.74 | K181: =J181+H181 -> 82.41
A182: 179 | B182: 10201302106 | C182: 胡冰雪 | D182: 230213贵阳市改茶小学 | E182: 02小学英语教师 | F182: 122.5 | G182: 81.67 | H182: 32.67 | I182: 81.5 | J182: =I182*0.6 -> 48.90 | K182: =J182+H182 -> 81.57
A183: 180 | B183: 10201131525 | C183: 付阿丽 | D183: 230213贵阳市改茶小学 | E183: 02小学英语教师 | F183: 130.5 | G183: 87.00 | H183: 34.80 | I183: 72.6 | J183: =I183*0.6 -> 43.56 | K183: =J183+H183 -> 78.36
A184: 181 | B184: 10201371510 | C184: 杨露 | D184: 230213贵阳市改茶小学 | E184: 02小学英语教师 | F184: 127.5 | G184: 85.00 | H184: 34.00 | I184: 73.6 | J184: =I184*0.6 -> 44.16 | K184: =J184+H184 -> 78.16
A185: 182 | B185: 10201311302 | C185: 王永凤 | D185: 230213贵阳市改茶小学 | E185: 02小学英语教师 | F185: 126 | G185: 84.00 | H185: 33.60 | I185: 缺考 | K185: =H185 -> 33.60
A186: 183 | B186: 10201371030 | C186: 李飞 | D186: 230213贵阳市改茶小学 | E186: 02小学英语教师 | F186: 126 | G186: 84.00 | H186: 33.60 | I186: 缺考 | K186: =H186 -> 33.60
A187: 184 | B187: 10201301305 | C187: 罗沐汐 | D187: 230213贵阳市改茶小学 | E187: 02小学英语教师 | F187: 122.5 | G187: 81.67 | H187: 32.67 | I187: 缺考 | K187: =H187 -> 32.67
A188: 185 | B188: 10201300215 | C188: 喻娇 | D188: 230213贵阳市改茶小学 | E188: 03小学体育教师 | F188: 123.5 | G188: 82.33 | H188: 32.93 | I188: 83.2 | J188: =I188*0.6 -> 49.92 | K188: =J188+H188 -> 82.85 | L188: 1 | M188: 1 | N188: 进入体检
A189: 186 | B189: 10201071416 | C189: 吕剑 | D189: 230213贵阳市改茶小学 | E189: 03小学体育教师 | F189: 120.5 | G189: 80.33 | H189: 32.13 | I189: 78.3 | J189: =I189*0.6 -> 46.98 | K189: =J189+H189 -> 79.11
A190: 187 | B190: 10201130721 | C190: 罗霜 | D190: 230213贵阳市改茶小学 | E190: 03小学体育教师 | F190: 120 | G190: 80.00 | H190: 32.00 | I190: 76.3 | J190: =I190*0.6 -> 45.78 | K190: =J190+H190 -> 77.78
A191: 188 | B191: 10201400809 | C191: 胡永文 | D191: 230213贵阳市改茶小学 | E191: 03小学体育教师 | F191: 119.5 | G191: 79.67 | H191: 31.87 | I191: 72.2 | J191: =I191*0.6 -> 43.32 | K191: =J191+H191 -> 75.19
A192: 189 | B192: 10201281130 | C192: 曾春香 | D192: 230213贵阳市改茶小学 | E192: 03小学体育教师 | F192: 117.5 | G192: 78.33 | H192: 31.33 | I192: 72 | J192: =I192*0.6 -> 43.20 | K192: =J192+H192 -> 74.53
A193: 190 | B193: 10201281027 | C193: 邢露露 | D193: 230213贵阳市改茶小学 | E193: 03小学体育教师 | F193: 127 | G193: 84.67 | H193: 33.87 | I193: 缺考 | K193: =H193 -> 33.87
A194: 191 | B194: 10201311005 | C194: 张玲 | D194: 230213贵阳市改茶小学 | E194: 03小学体育教师 | F194: 117.5 | G194: 78.33 | H194: 31.33 | I194: 缺考 | K194: =H194 -> 31.33
A195: 192 | B195: 10201191413 | C195: 黎燕 | D195: 230213贵阳市改茶小学 | E195: 04小学信息技术教师 | F195: 125 | G195: 83.33 | H195: 33.33 | I195: 77 | J195: =I195*0.6 -> 46.20 | K195: =J195+H195 -> 79.53 | L195: 1 | M195: 1 | N195: 进入体检
A196: 193 | B196: 10201191402 | C196: 王解琼 | D196: 230213贵阳市改茶小学 | E196: 04小学信息技术教师 | F196: 130 | G196: =F196/1.5 -> 86.67 | H196: =G196*0.4 -> 34.67 | I196: 73.2 | J196: =I196*0.6 -> 43.92 | K196: =J196+H196 -> 78.59
A197: 194 | B197: 10201130726 | C197: 朱贤青 | D197: 230213贵阳市改茶小学 | E197: 04小学信息技术教师 | F197: 125 | G197: 83.33 | H197: 33.33 | I197: 74.6 | J197: =I197*0.6 -> 44.76 | K197: =J197+H197 -> 78.09
A198: 195 | B198: 10201232127 | C198: 郭长艳 | D198: 230213贵阳市改茶小学 | E198: 04小学信息技术教师 | F198: 122.5 | G198: 81.67 | H198: 32.67 | I198: 75.2 | J198: =I198*0.6 -> 45.12 | K198: =J198+H198 -> 77.79
A199: 196 | B199: 10201193109 | C199: 付辽 | D199: 230213贵阳市改茶小学 | E199: 04小学信息技术教师 | F199: 122 | G199: 81.33 | H199: 32.53 | I199: 74.9 | J199: =I199*0.6 -> 44.94 | K199: =J199+H199 -> 77.47
A200: 197 | B200: 10201310617 | C200: 王念 | D200: 230213贵阳市改茶小学 | E200: 04小学信息技术教师 | F200: 121 | G200: 80.67 | H200: 32.27 | I200: 缺考 | K200: =H200 -> 32.27
... 369 more rows

Sheet Sheet2 (hidden)
A1: 1
A2: 第1候考室
A3: 第2候考室
A4: 第3候考室
A5: 第4候考室
A6: 第5候考室
A7: 第6候考室
A8: 第7候考室
A9: 第8候考室
A10: 第9候考室
A11: 第10候考室
A12: 第11候考室
A13: 第12候考室
A14: 第13候考室
A15: 第14候考室
A16: 第15候考室
A17: 第16候考室
A18: 第17候考室
A19: 第18候考室
A20: 第19候考室
A21: 第20候考室
A22: 第21候考室
A23: 第22候考室
A24: 第23候考室
A25: 第24候考室
